fUST/lending_fUST_20250506
["ID","MTS","AMOUNT","RATE_DAILY","PERIOD"]
[359985970,1746463847943,-400.0,0.00032876,8]
[359985972,1746463847955,-151.0,0.00032876,7]
[359985974,1746463847966,-400.0,0.00032876,8]
[359985976,1746463847978,-1952.11,0.00032876,8]
[359985978,1746463847988,-438.35,0.00032876,8]
[359985980,1746463847998,-590.57,0.00032876,8]
[359985982,1746463848010,-400.0,0.00032876,8]
[359985984,1746463848020,-1559.21,0.00032876,8]
[359985986,1746463848031,-1841.3,0.00032876,8]
[359985988,1746463848042,-400.0,0.00032876,8]
[359985990,1746463848054,-405.53511976,0.00032876,8]
[359985992,1746463848065,-400.0,0.00032876,8]
[359985994,1746463848080,-816.66,0.00032876,8]
[359985996,1746463848091,-400.0,0.00032876,8]
[359985998,1746463848102,-403.97235423,0.00032876,8]
[359986000,1746463848113,-400.0,0.00032876,8]
[359986002,1746463848124,-199.826802,0.00032876,7]
[359986004,1746463848135,-3193.3,0.00032876,8]
[359986006,1746463848146,-1536.34,0.00032876,8]
[359986008,1746463848157,-1399.77,0.00032876,8]
[359986010,1746463848168,-400.0,0.00032876,8]
[359986013,1746463848179,-400.0,0.00032876,8]
[359986015,1746463848190,-400.0,0.00032876,8]
[359986017,1746463848202,-400.0,0.00032876,8]
[359986019,1746463848216,-407.67829049,0.00032876,8]
[359986021,1746463848227,-400.0,0.00032876,8]
[359986023,1746463848237,-400.0,0.00032876,8]
[359986025,1746463848247,-400.0,0.00032876,8]
[359986027,1746463848258,-2236.98,0.00032876,8]
[359986029,1746463848269,-400.0,0.00032876,8]
[359986031,1746463848280,-400.0,0.00032876,8]
[359986033,1746463848290,-400.0,0.00032876,8]
[359986035,1746463848301,-1809.74,0.00032876,8]
[359986037,1746463848311,-400.0,0.00032876,8]
[359986039,1746463848321,-400.0,0.00032876,8]
[359986041,1746463848332,-405.13332909,0.00032876,8]
[359986043,1746463848342,-400.0,0.00032876,8]
[359986045,1746463848352,-507.58,0.00032876,8]
[359986047,1746463848362,-400.0,0.00032876,8]
[359986049,1746463848372,-465.71,0.00032876,8]
[359986051,1746463848382,-400.0,0.00032876,8]
[359986053,1746463848392,-655.64,0.00032876,8]
[359986055,1746463848403,-2424.01,0.00032876,8]
[359986057,1746463848413,-400.0,0.00032876,8]
[359986059,1746463848423,-400.0,0.00032876,8]
[359986061,1746463848435,-400.0,0.00032876,8]
[359986063,1746463848450,-400.0,0.00032876,8]
[359986065,1746463848463,-1963.59,0.00032876,8]
[359986067,1746463848473,-400.0,0.00032876,8]
[359986071,1746463848628,-11616.28,0.00032876,8]
[359986072,1746463848638,-400.0,0.00032876,8]
[359986073,1746463848648,-641.39,0.00032876,8]
[359986075,1746463848659,-400.0,0.00032876,8]
[359986077,1746463848668,-400.0,0.00032876,8]
[359986079,1746463848678,-400.0,0.00032876,8]
[359986081,1746463848689,-1464.13,0.00032876,8]
[359986083,1746463848699,-400.0,0.00032876,8]
[359986085,1746463848711,-232.15029405,0.00032876,8]
[359986087,1746463848721,-400.0,0.00032876,8]
[359986089,1746463848731,-1438.0,0.00032876,8]
[359986091,1746463848741,-400.0,0.00032876,8]
[359986093,1746463848751,-4243.14,0.00032876,8]
[359986095,1746463848761,-400.0,0.00032876,8]
[359986097,1746463848771,-400.0,0.00032876,8]
[359986099,1746463848781,-400.0,0.00032876,8]
[359986101,1746463848791,-1106.48,0.00032876,8]
[359986103,1746463848800,-549.73,0.00032876,8]
[359986105,1746463848810,-400.0,0.00032876,8]
[359986107,1746463848821,-400.0,0.00032876,8]
[359986109,1746463848831,-400.0,0.00032876,8]
[359986110,1746463848840,-400.0,0.00032876,8]
[359986113,1746463848850,-400.0,0.00032876,8]
[359986114,1746463848860,-400.0,0.00032876,8]
[359986117,1746463848871,-400.0,0.00032876,8]
[359986118,1746463848881,-400.0,0.00032876,8]
[359986120,1746463848891,-960.76,0.00032876,8]
[359986122,1746463848901,-400.0,0.00032876,8]
[359986124,1746463848911,-4880.78,0.00032876,8]
[359986126,1746463848921,-400.0,0.00032876,8]
[359986128,1746463848931,-27049.53,0.00032876,8]
[359986130,1746463848942,-400.0,0.00032876,8]
[359986132,1746463848957,-400.0,0.00032876,8]
[359986134,1746463848967,-715.1,0.00032876,8]
[359986136,1746463848977,-9385.24,0.00032876,8]
[359986138,1746463848987,-151.0,0.00032876,7]
[359986140,1746463848998,-497.72,0.00032876,8]
[359986142,1746463849008,-416.21548794,0.00032876,8]
[359986144,1746463849018,-400.0,0.00032876,8]
[359986146,1746463849029,-400.0,0.00032876,8]
[359986148,1746463849039,-400.0,0.00032876,8]
[359986150,1746463849049,-400.0,0.00032876,8]
[359986152,1746463849059,-1041.34,0.00032876,8]
[359986154,1746463849069,-2149.72,0.00032876,8]
[359986156,1746463849079,-400.0,0.00032876,8]
[359986159,1746463849089,-151.0,0.00032876,7]
[359986160,1746463849099,-151.0,0.00032876,7]
[359986162,1746463849109,-400.62898593,0.00032876,8]
[359986164,1746463849119,-551.12,0.00032876,8]
[359986166,1746463849128,-151.0,0.00032876,7]
[359986168,1746463849137,-400.0,0.00032876,8]
[359986170,1746463849147,-610.26,0.00032876,8]
[359986172,1746463849157,-3644.19,0.00032876,8]
[359986174,1746463849167,-400.0,0.00032876,8]
[359986176,1746463849177,-400.0,0.00032876,8]
[359986178,1746463849187,-400.0,0.00032876,8]
[359986179,1746463849196,-400.0,0.00032876,8]
[359986181,1746463849207,-239.3957205,0.00032876,8]
[359986183,1746463849218,-400.0,0.00032876,8]
[359986184,1746463849228,-400.0,0.00032876,8]
[359986185,1746463849239,-400.0,0.00032876,8]
[359986186,1746463849251,-400.0,0.00032876,8]
[359986187,1746463849261,-400.0,0.00032876,8]
[359986188,1746463849271,-400.0,0.00032876,8]
[359986189,1746463849281,-1924.56,0.00032876,8]
[359986190,1746463849291,-508.08,0.00032876,8]
[359986191,1746463849300,-400.0,0.00032876,8]
[359986192,1746463849310,-400.0,0.00032876,8]
[359986193,1746463849320,-151.0,0.00032876,7]
[359986194,1746463849330,-1203.34,0.00032876,8]
[359986195,1746463849340,-2801.31,0.00032876,8]
[359986196,1746463849349,-557.7,0.00032876,8]
[359986197,1746463849359,-292.250141,0.00032876,7]
[359986198,1746463849369,-400.0,0.00032876,8]
[359986199,1746463849379,-400.0,0.00032876,8]
[359986200,1746463849389,-400.0,0.00032876,8]
[359986201,1746463849398,-507.45487003,0.00032876,8]
[359986202,1746463849408,-400.0,0.00032876,8]
[359986203,1746463849418,-400.0,0.00032876,8]
[359986204,1746463849428,-1938.06,0.00032876,8]
[359986205,1746463849438,-432.48,0.00032876,8]
[359986206,1746463849451,-402.1342431,0.00032876,8]
[359986207,1746463849463,-400.0,0.00032876,8]
[359986208,1746463849473,-400.0,0.00032876,8]
[359986209,1746463849482,-400.0,0.00032876,8]
[359986210,1746463849492,-401.49548055,0.00032876,8]
[359986211,1746463849501,-400.0,0.00032876,8]
[359986212,1746463849511,-613.36,0.00032876,8]
[359986213,1746463849521,-400.0,0.00032876,8]
[359986214,1746463849531,-7208.54,0.00032876,8]
[359986215,1746463849541,-400.0,0.00032876,8]
[359986216,1746463849550,-401.31841447,0.00032876,8]
[359986217,1746463849560,-3157.01,0.00032876,8]
[359986218,1746463849570,-8861.79,0.00032876,8]
[359986219,1746463849580,-400.0,0.00032876,8]
[359986220,1746463849590,-400.0,0.00032876,8]
[359986221,1746463849600,-510.22529435,0.00032876,8]
[359986222,1746463849610,-400.0,0.00032876,8]
[359986223,1746463849620,-400.0,0.00032876,8]
[359986224,1746463849630,-1534.26,0.00032876,8]
[359986225,1746463849640,-209.6059804,0.00032876,8]
[359986226,1746463849651,-400.0,0.00032876,8]
[359986227,1746463849661,-400.0,0.00032876,8]
[359986228,1746463849670,-431.93476324,0.00032876,8]
[359986229,1746463849681,-400.0,0.00032876,8]
[359986230,1746463849691,-577.66,0.00032876,8]
[359986231,1746463849700,-1781.83,0.00032876,8]
[359986232,1746463849712,-400.0,0.00032876,8]
[359986233,1746463849722,-400.0,0.00032876,8]
[359986234,1746463849731,-400.0,0.00032876,8]
[359986235,1746463849741,-306.14520155,0.00032876,8]
[359986236,1746463849750,-168.27680601,0.00032876,8]
[359986237,1746463849760,-1559.37,0.00032876,8]
[359986238,1746463849771,-400.0,0.00032876,8]
[359986239,1746463849781,-1167.4,0.00032876,8]
[359986240,1746463849791,-400.0,0.00032876,8]
[359986241,1746463849801,-151.0,0.00032876,7]
[359986242,1746463849811,-2785.19,0.00032876,8]
[359986243,1746463849821,-151.0,0.00032876,7]
[359986244,1746463849831,-151.502301,0.00032876,7]
[359986245,1746463849840,-4662.64,0.00032876,8]
[359986246,1746463849850,-400.0,0.00032876,8]
[359986247,1746463849859,-400.0,0.00032876,8]
[359986248,1746463849869,-400.0,0.00032876,2]
[359986249,1746463849879,-400.0,0.00032876,8]
[359986250,1746463849889,-400.0,0.00032876,8]
[359986251,1746463849899,-400.0,0.00032876,8]
[359986252,1746463849909,-400.0,0.00032876,8]
[359986253,1746463849919,-608.59,0.00032876,8]
[359986254,1746463849929,-400.0,0.00032876,8]
[359986255,1746463849939,-400.0,0.00032876,8]
[359986256,1746463849950,-400.0,0.00032876,2]
[359986257,1746463849960,-428.99,0.00032876,8]
[359986258,1746463849970,-400.0,0.00032876,5]
[359986259,1746463849980,-400.0,0.00032876,8]
[359986260,1746463849991,-1495.17,0.00032876,8]
[359986261,1746463850000,-402.62829905,0.00032876,8]
[359986262,1746463850010,-400.0,0.00032876,8]
[359986263,1746463850020,-400.0,0.00032876,2]
[359986264,1746463850029,-2584.98,0.00032876,8]
[359986265,1746463850039,-400.0,0.00032876,8]
[359986266,1746463850048,-1268.67,0.00032876,8]
[359986267,1746463850058,-400.0,0.00032876,8]
[359986268,1746463850068,-671.0,0.00032876,8]
[359986269,1746463850078,-400.0,0.00032876,8]
[359986270,1746463850087,-400.0,0.00032876,8]
[359986271,1746463850096,-400.0,0.00032876,8]
[359986272,1746463850106,-403.87608503,0.00032876,8]
[359986273,1746463850115,-400.0,0.00032876,8]
[359986274,1746463850125,-400.0,0.00032876,8]
[359986275,1746463850136,-400.0,0.00032876,8]
[359986276,1746463850145,-2637.04,0.00032876,8]
[359986277,1746463850155,-403.10134657,0.00032876,8]
[359986278,1746463850164,-400.0,0.00032876,8]
[359986279,1746463850173,-400.0,0.00032876,8]
[359986280,1746463850183,-401.52530454,0.00032876,8]
[359986281,1746463850192,-196.611786,0.00032877,3]
[359986282,1746463850202,-500.0,0.00032877,3]
[359986283,1746463850213,-500.0,0.00032877,3]
[359986284,1746463850222,-500.0,0.00032877,3]
[359986285,1746463850232,-151.0,0.00032877,3]
[359986286,1746463850243,-500.0,0.00032877,3]
[359986287,1746463850253,-151.0,0.00032877,3]
[359986288,1746463850262,-151.0,0.00032877,3]
[359986289,1746463850272,-151.0,0.00032877,3]
[359986290,1746463850282,-151.56533223,0.00032877,3]
[359986291,1746463850291,-152.992381,0.00032877,14]
[359986292,1746463850300,-1146.0,0.00032877,3]
[359986293,1746463850310,-500.0,0.00032877,3]
[359986294,1746463850320,-151.0,0.00032877,3]
[359986295,1746463850329,-500.0,0.00032877,3]
[359986296,1746463850340,-264.41960271,0.00032877,3]
[359986297,1746463850349,-151.0,0.00032877,14]
[359986298,1746463850359,-151.0,0.00032877,2]
[359986299,1746463850369,-167.82284361,0.00032877,8]
[359986300,1746463850379,-151.0,0.00032877,8]
[359986301,1746463850388,-151.0,0.00032877,8]
[359986302,1746463850398,-500.0,0.00032904,3]
[359986303,1746463850407,-500.0,0.00032904,3]
[359986304,1746463850417,-500.0,0.00032904,3]
[359986305,1746463850427,-151.0,0.00032904,3]
[359986306,1746463850437,-500.0,0.00032904,3]
[359986307,1746463850449,-151.0,0.00032904,3]
[359986308,1746463850460,-151.0,0.00032904,3]
[359986309,1746463850470,-151.0,0.00032904,3]
[359986310,1746463850479,-1146.0,0.00032904,3]
[359986311,1746463850491,-500.0,0.00032904,3]
[359986312,1746463850501,-151.0,0.00032904,3]
[359986313,1746463850510,-500.0,0.00032904,3]
[359986314,1746463850521,-151.0,0.00032904,2]
[359986315,1746463850531,-151.0,0.00032904,8]
[359986316,1746463850541,-1290.01099522,0.00032913,2]
[359986317,1746463850551,-500.0,0.00032932,3]
[359986318,1746463850562,-500.0,0.00032932,3]
[359986319,1746463850571,-151.0,0.00032932,3]
[359986320,1746463850582,-151.0,0.00032932,3]
[359986321,1746463850592,-500.0,0.00032932,3]
[359986322,1746463850602,-198.0,0.00032932,3]
[359986323,1746463850613,-198.0,0.00032932,3]
[359986324,1746463850623,-151.0,0.00032932,3]
[359986325,1746463850633,-1146.0,0.00032932,3]
[359986326,1746463850643,-151.0,0.00032932,3]
[359986327,1746463850653,-151.0,0.00032932,3]
[359986328,1746463850662,-151.0,0.00032932,3]
[359986329,1746463850672,-151.0,0.00032932,2]
[359986330,1746463850682,-151.0,0.00032932,8]
[359986331,1746463850691,-500.0,0.00032959,3]
[359986332,1746463850701,-151.0,0.00032959,3]
[359986333,1746463850714,-500.0,0.00032959,3]
[359986334,1746463850724,-151.0,0.00032959,3]
[359986335,1746463850734,-1146.0,0.00032959,3]
[359986336,1746463850745,-261.59395697,0.00032959,3]
[359986337,1746463850755,-151.0,0.00032959,2]
[359986338,1746463850765,-151.0,0.00032959,8]
[359986339,1746463850775,-1290.01099522,0.00032982,2]
[359986340,1746463850785,-151.0,0.00032987,3]
[359986341,1746463850795,-151.0,0.00032987,3]
[359986342,1746463850805,-500.0,0.00032987,3]
[359986343,1746463850815,-151.0,0.00032987,3]
[359986344,1746463850824,-1146.0,0.00032987,3]
[359986345,1746463850834,-151.0,0.00032987,2]
[359986346,1746463850844,-151.0,0.00032987,8]
[359986347,1746463850854,-245.0,0.00033014,3]
[359986348,1746463850864,-500.0,0.00033014,3]
[359986349,1746463850984,-245.0,0.00033014,3]
[359986350,1746463850994,-1146.0,0.00033014,3]
[359986351,1746463851004,-245.0,0.00033014,2]
[359986352,1746463851014,-245.0,0.00033014,8]
[359986353,1746463851024,-293.64318526,0.00033021,2]
[359986354,1746463851034,-8840.63614751,0.00033028,2]
[359986355,1746463851044,-1465.7461533,0.00033028,2]
[359986356,1746463851054,-500.0,0.00033041,3]
[359986357,1746463851064,-1146.0,0.00033041,3]
[359986358,1746463851074,-1290.01099522,0.0003305,2]
[359986359,1746463851084,-500.0,0.00033069,3]
[359986360,1746463851094,-1146.0,0.00033069,3]
[359986361,1746463851103,-500.0,0.00033096,3]
[359986362,1746463851113,-1146.0,0.00033096,3]
[359986363,1746463851122,-450.98219788,0.00033104,2]
[359986364,1746463851132,-1482.68832618,0.00033117,2]
[359986365,1746463851142,-500.0,0.00033124,3]
[359986366,1746463851151,-1146.0,0.00033124,3]
[359986367,1746463851162,-155.190602,0.00033139,14]
[359986368,1746463851172,-253.048707,0.00033139,14]
[359986369,1746463851181,-151.0,0.0003314,14]
[359986370,1746463851191,-151.0,0.0003314,14]
[359986371,1746463851200,-189.346116,0.0003314,14]
[359986372,1746463851212,-189.346116,0.0003314,14]
[359986373,1746463851221,-151.0,0.0003314,14]
[359986374,1746463851230,-26299.64778126,0.0003314,2]
[359986375,1746463851262,-4857.84466758,0.0003314,2]
[359986386,1746464403161,893.72,0.00018,2]
[359986403,1746464831127,-160.0,0.00025195,2]
[359986404,1746464831149,-1200.0,0.00025203,2]
[359986405,1746464831170,-300.0,0.00025204,2]
[359986406,1746464831191,-194.0,0.00025204,2]
[359986407,1746464831213,-300.0,0.00025204,2]
[359986408,1746464831234,-300.0,0.00025204,2]
[359986409,1746464831255,-300.0,0.00025204,2]
[359986410,1746464831276,-500.0,0.00025205,2]
[359986411,1746464831296,-500.0,0.00025205,2]
[359986412,1746464831316,-500.0,0.00025205,2]
[359986413,1746464831338,-500.0,0.00025205,2]
[359986414,1746464831358,-335.16971574,0.00025205,2]
[359986416,1746464836104,-164.83028426,0.00025205,2]
[359986417,1746464836124,-302.2256412,0.0002598,2]
[359986418,1746464836144,-516.0,0.00026574,2]
[359986419,1746464836164,-736.91421481,0.000269,2]
[359986425,1746464853086,-366.67613431,0.00025197,2]
[359986443,1746464958104,-199.37332561,0.00024474,2]
[359986444,1746464958126,-1673.60981643,0.00025197,2]
[359986445,1746464959091,-7960.19404926,0.00025197,2]
[359986446,1746464959116,-300.0,0.00025204,2]
[359986447,1746464959140,-385.73080801,0.000259,14]
[359986448,1746464959161,-161.0,0.0002628,2]
[359986449,1746464959183,-385.73080778,0.00026383,15]
[359986450,1746464959203,-535.4675769,0.00026427,2]
[359986451,1746464959224,-318.093489,0.0002648,2]
[359986452,1746464959247,-385.73080778,0.00026866,16]
[359986453,1746464959267,-414.54567779,0.0002705,2]
[359986454,1746464959288,-200.13432905,0.0002705,2]
[359986455,1746464959308,-1000.0,0.0002715,2]
[359986456,1746464959328,-250.0,0.0002715,2]
[359986457,1746464959352,-3019.25024512,0.00027299,2]
[359986458,1746464959373,-300.0,0.00027299,2]
[359986459,1746464959394,-353.0,0.00027299,2]
[359986460,1746464959418,-385.73080778,0.00027348,16]
[359986461,1746464959439,-199.40253,0.00027397,2]
[359986462,1746464959463,-385.73080778,0.00027831,17]
[359986463,1746464959484,-396.23943092,0.00028223,2]
[359986464,1746464959504,-154.73076864,0.00028223,2]
[359986465,1746464959526,-500.0,0.00028223,2]
[359986466,1746464959547,-500.0,0.00028223,2]
[359986467,1746464959576,-500.0,0.00028223,2]
[359986468,1746464959598,-404.05476148,0.00028223,2]
[359986469,1746464959627,-500.0,0.00028223,2]
[359986470,1746464959649,-500.0,0.00028223,2]
[359986471,1746464959670,-500.0,0.00028223,2]
[359986472,1746464959699,-500.0,0.00028223,2]
[359986473,1746464959727,-500.0,0.00028223,2]
[359986474,1746464959749,-234.90317365,0.00028223,2]
[359986475,1746464959780,-500.0,0.00028223,2]
[359986476,1746464959804,-159.16821725,0.00028223,2]
[359986477,1746464959839,-500.0,0.00028223,2]
[359986478,1746464960042,-615.74805188,0.00028223,2]
[359986479,1746464960073,-500.0,0.00028223,2]
[359986480,1746464960102,-500.0,0.00028223,2]
[359986481,1746464960129,-500.0,0.00028223,2]
[359986482,1746464960157,-500.0,0.00028223,2]
[359986483,1746464960185,-500.0,0.00028223,2]
[359986484,1746464960212,-500.0,0.00028223,2]
[359986485,1746464960240,-500.0,0.00028223,2]
[359986486,1746464960268,-500.0,0.00028223,2]
[359986487,1746464960295,-500.0,0.00028223,2]
[359986488,1746464960324,-500.0,0.00028223,2]
[359986489,1746464960353,-500.0,0.00028223,2]
[359986490,1746464960380,-500.0,0.00028223,2]
[359986491,1746464960407,-500.0,0.00028223,2]
[359986492,1746464960435,-500.0,0.00028223,2]
[359986493,1746464960463,-500.0,0.00028223,2]
[359986494,1746464960491,-500.0,0.00028223,2]
[359986495,1746464960520,-500.0,0.00028223,2]
[359986496,1746464960547,-500.0,0.00028223,2]
[359986497,1746464960576,-177.20241384,0.00028223,2]
[359986498,1746464960597,-500.0,0.00028223,2]
[359986499,1746464960620,-500.0,0.00028223,2]
[359986500,1746464960643,-500.0,0.00028223,2]
[359986501,1746464960664,-500.0,0.00028223,2]
[359986502,1746464960686,-500.0,0.00028223,2]
[359986503,1746464960706,-500.0,0.00028223,2]
[359986504,1746464960728,-500.0,0.00028223,2]
[359986505,1746464960749,-460.14673719,0.00028223,2]
[359986506,1746464960770,-500.0,0.00028223,2]
[359986507,1746464960792,-500.0,0.00028223,2]
[359986508,1746464960813,-500.0,0.00028223,2]
[359986509,1746464960834,-500.0,0.00028223,2]
[359986510,1746464960858,-500.0,0.00028223,2]
[359986511,1746464960881,-500.0,0.00028223,2]
[359986512,1746464960904,-300.0,0.00028223,2]
[359986513,1746464960928,-500.0,0.00028223,2]
[359986514,1746464960950,-610.38494374,0.00028223,2]
[359986515,1746464960972,-500.0,0.00028223,2]
[359986516,1746464960994,-500.0,0.00028223,2]
[359986517,1746464961015,-500.0,0.00028223,2]
[359986518,1746464961036,-500.0,0.00028223,2]
[359986519,1746464961057,-500.0,0.00028223,2]
[359986520,1746464961078,-397.31667247,0.00028223,2]
[359986521,1746464961098,-309.39832824,0.00028223,2]
[359986522,1746464961119,-24900.0,0.00028225,2]
[359986523,1746464961138,-500.0,0.000283,5]
[359986524,1746464961158,-500.0,0.000283,5]
[359986525,1746464961177,-500.0,0.000283,5]
[359986526,1746464961197,-500.0,0.000283,5]
[359986527,1746464961216,-500.0,0.000283,5]
[359986528,1746464961242,-385.73080778,0.00028314,18]
[359986529,1746464961268,-385.73080778,0.00028797,19]
[359986530,1746464961291,-385.73080778,0.00029279,20]
[359986531,1746464961311,-199.37332561,0.00029474,2]
[359986532,1746464961331,-3787.7231201,0.00029592,2]
[359986533,1746464961353,-385.73080778,0.00029762,21]
[359986534,1746464961372,-344.27777,0.000298,120]
[359986535,1746464961392,-254.1,0.00030038,22]
[359986536,1746464961413,-254.1,0.00030038,22]
[359986537,1746464961433,-254.1,0.00030038,22]
[359986538,1746464961453,-254.1,0.00030038,22]
[359986539,1746464961472,-254.1,0.00030038,22]
[359986540,1746464961492,-254.1,0.00030038,22]
[359986541,1746464961516,-254.1,0.00030038,22]
[359986542,1746464961536,-254.1,0.00030038,22]
[359986543,1746464961556,-254.1,0.00030038,22]
[359986544,1746464961579,-385.73080778,0.00030245,22]
[359986545,1746464961599,-1305.978651,0.000303,2]
[359986546,1746464961620,-166.1123423,0.00030313,2]
[359986547,1746464961643,-385.73080778,0.00030728,23]
[359986548,1746464961663,-421.83547488,0.00030908,2]
[359986549,1746464961684,-246.282344,0.0003091,2]
[359986550,1746464961705,-1592.0747894,0.00030934,2]
[359986551,1746464961725,-160.0,0.00030937,2]
[359986552,1746464961750,-385.73080778,0.0003121,24]
[359986553,1746464961773,-385.73080778,0.00031693,25]
[359986557,1746464985326,241.44052861,0.00028,10]
[359986561,1746465005534,249.77943537,0.00028208,2]
[359986563,1746465012350,1073.44034542,0.00028223,2]
[359986564,1746465012689,548.75539448,0.00028223,2]
[359986581,1746465032006,-524.68495094,0.00028223,2]
[359986583,1746465032016,-151.0,0.00032572,2]
[359986585,1746465032025,-479.88811627,0.00032699,2]
[359986586,1746465032035,-408.64686326,0.000327,2]
[359986587,1746465032044,-408.64686325,0.00032716,2]
[359986588,1746465032054,-408.64686325,0.00032731,2]
[359986589,1746465032064,-408.64686325,0.00032747,2]
[359986590,1746465032073,-3365.8684086,0.00032761,2]
[359986591,1746465032083,-963.7021338,0.00032761,2]
[359986592,1746465032093,-226.16,0.00032761,3]
[359986593,1746465032102,-678.48,0.00032761,3]
[359986594,1746465032113,-179.08150384,0.00032762,2]
[359986595,1746465032122,-408.64686325,0.00032762,2]
[359986596,1746465032132,-23058.02214313,0.00032771,2]
[359986597,1746465032141,-11120.48999387,0.00032771,2]
[359986598,1746465032157,-21350.02509319,0.00032771,2]
[359986599,1746465032169,-8197.20049465,0.00032771,2]
[359986600,1746465032181,-34006.03766316,0.00032771,2]
[359986618,1746465038260,-763.33535674,0.00028222,2]
[359986619,1746465038270,-1073.44034542,0.00028223,2]
[359986620,1746465038280,-421.83547488,0.00032699,2]
[359986621,1746465038289,-13306.47314703,0.00032771,2]
[359986622,1746465038299,-500.0,0.00032773,5]
[359986623,1746465038309,-362.19133297,0.00032773,5]
[359986624,1746465038319,-500.0,0.00032773,5]
[359986625,1746465038329,-500.0,0.00032773,2]
[359986626,1746465038338,-500.0,0.00032773,5]
[359986627,1746465038347,-507.43167562,0.00032773,5]
[359986628,1746465038357,-500.0,0.00032773,5]
[359986629,1746465038366,-500.0,0.00032773,5]
[359986630,1746465038376,-269.89845044,0.00032773,5]
[359986631,1746465038385,-500.0,0.00032773,2]
[359986632,1746465038394,-506.08488989,0.00032773,5]
[359986633,1746465038403,-500.0,0.00032773,5]
[359986634,1746465038412,-558.75,0.0003278,3]
[359986635,1746465038422,-3365.8684086,0.0003278,2]
[359986636,1746465038432,-963.7021338,0.0003278,2]
[359986637,1746465038442,-555.84279043,0.00032789,2]
[359986638,1746465038451,-171.64685281,0.00032789,2]
[359986639,1746465038461,-223.46297343,0.00032789,2]
[359986640,1746465038470,-5048.8026129,0.0003279,2]
[359986641,1746465038480,-1445.5532007,0.0003279,2]
[359986642,1746465038489,-564.91,0.0003279,3]
[359986643,1746465038499,-282.45,0.0003279,3]
[359986644,1746465038509,-847.4,0.0003279,3]
[359986645,1746465038518,-4623.32032319,0.0003279,2]
[359986646,1746465038530,-7475.99,0.0003279,2]
[359986800,1746465041422,-9778.83433271,0.0003279,2]
[359986802,1746465041432,-6264.0638697,0.0003279,2]
[359986804,1746465041441,-160.0,0.000328,3]
[359986806,1746465041450,-10389.76687216,0.000328,3]
[359986808,1746465041459,-182.23035355,0.000328,3]
[359986810,1746465041468,-70636.38294373,0.000328,2]
[359986838,1746465041725,-763.33535674,0.00028222,2]
[359986840,1746465041735,-763.33535674,0.00028222,2]
[359986842,1746465041744,-763.33535674,0.00028222,2]
[359986844,1746465041754,-763.33535674,0.00028222,2]
[359986846,1746465041764,-763.33535674,0.00028222,2]
[359986848,1746465041773,-763.33535674,0.00028222,2]
[359986850,1746465041782,-763.33535674,0.00028222,2]
[359986852,1746465041791,-763.33535674,0.00028222,2]
[359986854,1746465041800,-763.33535674,0.00028222,2]
[359986856,1746465041810,-763.33535674,0.00028222,2]
[359986858,1746465041819,-763.33535674,0.00028222,2]
[359986860,1746465041829,-119.84986272,0.00028223,2]
[359987305,1746465046149,-763.33535674,0.00028222,2]
[359987307,1746465046160,-763.33535674,0.00028222,2]